[Event "*** Titled Tuesday Blitz"]
[Site "Chess.com"]
[Date "2020.05.12"]
[Round "9"]
[White "StephenDedalus83"]
[Black "SerGo055"]
[Result "1/2-1/2"]
[WhiteElo "2730"]
[BlackElo "2579"]
[TimeControl "180+1"]
[EndTime "11:43:46 PDT"]
[Termination "Game drawn by repetition"]

1. e4 {[%clk 0:03:00.9]} 1... d5 {[%clk 0:02:59.6]} 2. exd5 {[%clk 0:03:00]}
2... Qxd5 {[%clk 0:02:58.1]} 3. Nc3 {[%clk 0:03:00.6]} 3... Qd8 {[%clk
0:02:57.4]} 4. d4 {[%clk 0:03:00.8]} 4... Nf6 {[%clk 0:02:54.3]} 5. Nf3 {[%clk
0:03:00.6]} 5... c6 {[%clk 0:02:53]} 6. Bc4 {[%clk 0:02:58.5]} 6... Bf5 {[%clk
0:02:52.6]} 7. Ne5 {[%clk 0:02:57.6]} 7... e6 {[%clk 0:02:52.7]} 8. g4 {[%clk
0:02:57.5]} 8... Be4 {[%clk 0:02:53]} 9. Nxe4 {[%clk 0:02:56.4]} 9... Nxe4
{[%clk 0:02:53.9]} 10. Qf3 {[%clk 0:02:56.4]} 10... Nd6 {[%clk 0:02:53.7]} 11.
Bd3 {[%clk 0:02:54.1]} 11... Nd7 {[%clk 0:02:52.6]} 12. Bd2 {[%clk 0:02:52]}
12... Be7 {[%clk 0:02:44.4]} 13. O-O-O {[%clk 0:02:26]} 13... Bg5 {[%clk
0:02:43.7]} 14. Kb1 {[%clk 0:02:25.6]} 14... Bxd2 {[%clk 0:02:43.1]} 15. Rxd2
{[%clk 0:02:26.5]} 15... Qe7 {[%clk 0:02:20.1]} 16. Re1 {[%clk 0:02:19.3]} 16...
O-O-O {[%clk 0:02:07.2]} 17. c3 {[%clk 0:01:53.4]} 17... Nxe5 {[%clk 0:02:01.4]}
18. Rxe5 {[%clk 0:01:52.1]} 18... Qf6 {[%clk 0:01:49.8]} 19. Qg3 {[%clk
0:01:47.8]} 19... g6 {[%clk 0:01:35.8]} 20. Rde2 {[%clk 0:01:46.4]} 20... h5
{[%clk 0:01:18.9]} 21. gxh5 {[%clk 0:01:40.1]} 21... Rxh5 {[%clk 0:01:16.6]} 22.
Rxh5 {[%clk 0:01:39.5]} 22... gxh5 {[%clk 0:01:16.4]} 23. Qe5 {[%clk 0:01:21.3]}
23... Qxe5 {[%clk 0:01:02.1]} 24. Rxe5 {[%clk 0:01:19.9]} 24... Rh8 {[%clk
0:01:01.4]} 25. Kc2 {[%clk 0:01:11.7]} 25... Kd7 {[%clk 0:01:00.8]} 26. Rg5
{[%clk 0:01:11.3]} 26... Ke7 {[%clk 0:01:00.2]} 27. Kd2 {[%clk 0:01:10]} 27...
h4 {[%clk 0:00:56.5]} 28. Ke3 {[%clk 0:01:08.8]} 28... Kf6 {[%clk 0:00:54.4]}
29. Kf4 {[%clk 0:01:08.6]} 29... b6 {[%clk 0:00:47.2]} 30. h3 {[%clk 0:01:07.4]}
30... Ke7 {[%clk 0:00:28.7]} 31. Kg4 {[%clk 0:01:04.6]} 31... f5+ {[%clk
0:00:25.3]} 32. Kf4 {[%clk 0:01:04.4]} 32... Kf6 {[%clk 0:00:25.3]} 33. f3
{[%clk 0:01:00.5]} 33... c5 {[%clk 0:00:23.9]} 34. Rg1 {[%clk 0:00:55.2]} 34...
cxd4 {[%clk 0:00:21.7]} 35. cxd4 {[%clk 0:00:55.2]} 35... Rc8 {[%clk 0:00:17.4]}
36. Ke3 {[%clk 0:00:45.1]} 36... Nc4+ {[%clk 0:00:16.6]} 37. Bxc4 {[%clk
0:00:45.1]} 37... Rxc4 {[%clk 0:00:17.5]} 38. Kd3 {[%clk 0:00:45.4]} 38... Rc8
{[%clk 0:00:16.2]} 39. f4 {[%clk 0:00:45.2]} 39... Kf7 {[%clk 0:00:13.1]} 40.
Kd2 {[%clk 0:00:43.1]} 40... Kf6 {[%clk 0:00:12.5]} 41. Rg5 {[%clk 0:00:40]}
41... Rd8 {[%clk 0:00:09.8]} 42. Ke3 {[%clk 0:00:36.4]} 42... Rc8 {[%clk
0:00:09]} 43. Kd3 {[%clk 0:00:36.4]} 43... Rh8 {[%clk 0:00:06.6]} 44. b4 {[%clk
0:00:30.4]} 44... b5 {[%clk 0:00:06.1]} 45. a3 {[%clk 0:00:29.8]} 45... a6
{[%clk 0:00:06.3]} 46. Ke3 {[%clk 0:00:27.1]} 46... Rc8 {[%clk 0:00:06]} 47. Kd3
{[%clk 0:00:24.5]} 47... Rh8 {[%clk 0:00:05.9]} 48. Kc3 {[%clk 0:00:19.6]} 48...
Rc8+ {[%clk 0:00:05.6]} 49. Kd2 {[%clk 0:00:19.1]} 49... Rd8 {[%clk 0:00:05.8]}
50. Kd3 {[%clk 0:00:19]} 50... Rh8 {[%clk 0:00:05.4]} 1/2-1/2

[Event "*** Titled Tuesday Blitz"]
[Site "Chess.com"]
[Date "2020.05.12"]
[Round "9"]
[White "MFguimaraes"]
[Black "zmarian"]
[Result "1/2-1/2"]
[WhiteElo "2448"]
[BlackElo "2149"]
[TimeControl "180+1"]
[EndTime "11:43:46 PDT"]
[Termination "Game drawn by repetition"]

1. e4 {[%clk 0:03:00.9]} 1... g6 {[%clk 0:02:59.3]} 2. d4 {[%clk 0:03:00.1]}
2... Bg7 {[%clk 0:02:59.2]} 3. Nc3 {[%clk 0:03:00.4]} 3... c5 {[%clk 0:02:59.1]}
4. dxc5 {[%clk 0:02:57.4]} 4... Qa5 {[%clk 0:02:58]} 5. Bd3 {[%clk 0:02:53.5]}
5... Bxc3+ {[%clk 0:02:48.7]} 6. bxc3 {[%clk 0:02:54.4]} 6... Qxc3+ {[%clk
0:02:48.7]} 7. Bd2 {[%clk 0:02:54.8]} 7... Qxc5 {[%clk 0:02:48.3]} 8. Nf3 {[%clk
0:02:55.7]} 8... d6 {[%clk 0:02:46.5]} 9. O-O {[%clk 0:02:55.7]} 9... Nf6 {[%clk
0:02:41.8]} 10. Bh6 {[%clk 0:02:52.6]} 10... Bg4 {[%clk 0:02:40.5]} 11. Bg7
{[%clk 0:02:50.5]} 11... Rg8 {[%clk 0:02:38.2]} 12. Bxf6 {[%clk 0:02:50.8]}
12... exf6 {[%clk 0:02:38.2]} 13. Rb1 {[%clk 0:02:51.3]} 13... b6 {[%clk
0:02:35.7]} 14. Bb5+ {[%clk 0:02:50.5]} 14... Ke7 {[%clk 0:02:32.5]} 15. h3
{[%clk 0:02:50.5]} 15... Bxf3 {[%clk 0:02:25.8]} 16. Qxf3 {[%clk 0:02:50.7]}
16... Nc6 {[%clk 0:02:24.4]} 17. e5 {[%clk 0:02:46.8]} 17... Nxe5 {[%clk
0:02:16.1]} 18. Qb7+ {[%clk 0:02:46.2]} 18... Ke6 {[%clk 0:02:09.6]} 19. Rfe1
{[%clk 0:02:32.8]} 19... f5 {[%clk 0:01:59]} 20. Ba4 {[%clk 0:01:47.5]} 20...
Rgb8 {[%clk 0:01:47.9]} 21. Bb3+ {[%clk 0:01:46]} 21... Kf6 {[%clk 0:01:45.3]}
22. Qa6 {[%clk 0:01:40.6]} 22... Re8 {[%clk 0:01:39.3]} 23. Rbd1 {[%clk
0:01:28.4]} 23... Kg7 {[%clk 0:01:25.9]} 24. Rd5 {[%clk 0:01:21.2]} 24... Qc3
{[%clk 0:01:16.9]} 25. Re3 {[%clk 0:01:17.5]} 25... Qc7 {[%clk 0:01:10.6]} 26.
Qe2 {[%clk 0:01:06.7]} 26... Red8 {[%clk 0:00:54.7]} 27. f4 {[%clk 0:01:01.7]}
27... Nc6 {[%clk 0:00:51.6]} 28. Qc4 {[%clk 0:01:01.1]} 28... Rac8 {[%clk
0:00:47.9]} 29. Rc3 {[%clk 0:01:00.6]} 29... Qe7 {[%clk 0:00:41]} 30. Qf1 {[%clk
0:00:50.2]} 30... Nb4 {[%clk 0:00:32.2]} 31. Rxc8 {[%clk 0:00:50]} 31... Rxc8
{[%clk 0:00:31.7]} 32. Rd2 {[%clk 0:00:38]} 32... Qe3+ {[%clk 0:00:30.7]} 33.
Qf2 {[%clk 0:00:38.3]} 33... Qxf2+ {[%clk 0:00:27.9]} 34. Kxf2 {[%clk
0:00:39.2]} 34... Rd8 {[%clk 0:00:26.8]} 35. c3 {[%clk 0:00:32.1]} 35... Na6
{[%clk 0:00:25.4]} 36. Re2 {[%clk 0:00:28.7]} 36... Nc5 {[%clk 0:00:24.2]} 37.
Bd5 {[%clk 0:00:27.8]} 37... Kf6 {[%clk 0:00:22.6]} 38. g4 {[%clk 0:00:25.5]}
38... fxg4 {[%clk 0:00:21.7]} 39. hxg4 {[%clk 0:00:26.4]} 39... h6 {[%clk
0:00:20.7]} 40. c4 {[%clk 0:00:24.8]} 40... Rd7 {[%clk 0:00:19.3]} 41. Kf3
{[%clk 0:00:22.1]} 41... Nd3 {[%clk 0:00:17.9]} 42. Re3 {[%clk 0:00:20.5]} 42...
Nb4 {[%clk 0:00:17.3]} 43. Ra3 {[%clk 0:00:16.4]} 43... Nxd5 {[%clk 0:00:16.2]}
44. cxd5 {[%clk 0:00:17.3]} 44... Rc7 {[%clk 0:00:16]} 45. Ra4 {[%clk
0:00:15.4]} 45... g5 {[%clk 0:00:16.2]} 46. fxg5+ {[%clk 0:00:14.8]} 46... hxg5
{[%clk 0:00:15]} 47. Ke4 {[%clk 0:00:15.1]} 47... Re7+ {[%clk 0:00:12.3]} 48.
Kf3 {[%clk 0:00:14.5]} 48... Rc7 {[%clk 0:00:11.9]} 49. Ra3 {[%clk 0:00:14.3]}
49... Re7 {[%clk 0:00:11.2]} 50. Ra4 {[%clk 0:00:13.8]} 50... Rc7 {[%clk
0:00:11]} 1/2-1/2

[Event "*** Titled Tuesday Blitz"]
[Site "Chess.com"]
[Date "2020.05.12"]
[Round "9"]
[White "Arjun2002"]
[Black "AttilaTurzo"]
[Result "1-0"]
[WhiteElo "2672"]
[BlackElo "2499"]
[TimeControl "180+1"]
[EndTime "11:43:47 PDT"]
[Termination "Arjun2002 won by resignation"]

1. e4 {[%clk 0:03:00.9]} 1... c5 {[%clk 0:02:59.7]} 2. Nf3 {[%clk 0:03:00.7]}
2... Nc6 {[%clk 0:02:59.5]} 3. d4 {[%clk 0:03:00.2]} 3... cxd4 {[%clk
0:03:00.4]} 4. Nxd4 {[%clk 0:03:00.8]} 4... Nf6 {[%clk 0:03:01]} 5. Nc3 {[%clk
0:02:58.8]} 5... d6 {[%clk 0:03:01.2]} 6. f3 {[%clk 0:02:57.7]} 6... e5 {[%clk
0:03:00.8]} 7. Nb3 {[%clk 0:02:57.2]} 7... Be6 {[%clk 0:03:00.8]} 8. Nd5 {[%clk
0:02:43.9]} 8... Bxd5 {[%clk 0:02:54.3]} 9. exd5 {[%clk 0:02:43.7]} 9... Nb8
{[%clk 0:02:54.4]} 10. Be3 {[%clk 0:02:38.7]} 10... Be7 {[%clk 0:02:52.6]} 11.
Be2 {[%clk 0:02:33.9]} 11... O-O {[%clk 0:02:52.1]} 12. O-O {[%clk 0:02:33.9]}
12... a5 {[%clk 0:02:51.6]} 13. c4 {[%clk 0:02:31.9]} 13... a4 {[%clk
0:02:46.5]} 14. Nd2 {[%clk 0:02:31.5]} 14... Nfd7 {[%clk 0:02:37.3]} 15. Kh1
{[%clk 0:02:16.8]} 15... Bg5 {[%clk 0:02:28.9]} 16. Bf2 {[%clk 0:02:10.9]} 16...
Na6 {[%clk 0:02:16]} 17. Ne4 {[%clk 0:02:09.7]} 17... Be7 {[%clk 0:02:10.3]} 18.
Qxa4 {[%clk 0:02:05.4]} 18... f5 {[%clk 0:02:07.9]} 19. Nc3 {[%clk 0:02:04.8]}
19... e4 {[%clk 0:01:59]} 20. fxe4 {[%clk 0:02:00.9]} 20... f4 {[%clk
0:01:57.8]} 21. Bg4 {[%clk 0:01:49.8]} 21... Ne5 {[%clk 0:01:53.5]} 22. Be6+
{[%clk 0:01:45.4]} 22... Kh8 {[%clk 0:01:53.8]} 23. Bd4 {[%clk 0:01:21.2]} 23...
Nc5 {[%clk 0:01:35.8]} 24. Qd1 {[%clk 0:01:10.7]} 24... Ncd3 {[%clk 0:01:31.2]}
25. Ne2 {[%clk 0:00:54.3]} 25... Bg5 {[%clk 0:01:14.2]} 26. Ng1 {[%clk
0:00:49.1]} 26... Nxb2 {[%clk 0:01:11.3]} 27. Bxb2 {[%clk 0:00:48.3]} 27... Nxc4
{[%clk 0:01:09.5]} 28. Bd4 {[%clk 0:00:45.9]} 28... Ne3 {[%clk 0:01:04.7]} 29.
Bxe3 {[%clk 0:00:45.2]} 29... fxe3 {[%clk 0:01:05.6]} 30. Rxf8+ {[%clk
0:00:43.1]} 30... Qxf8 {[%clk 0:01:06.5]} 31. Qe2 {[%clk 0:00:35.3]} 31... Qf4
{[%clk 0:00:58.9]} 32. Nf3 {[%clk 0:00:29.3]} 32... Bh6 {[%clk 0:00:57.9]} 33.
Qc2 {[%clk 0:00:23.2]} 33... Rf8 {[%clk 0:00:49.6]} 34. Re1 {[%clk 0:00:22.1]}
34... Qf6 {[%clk 0:00:46.6]} 35. Bf5 {[%clk 0:00:16.5]} 35... g6 {[%clk
0:00:44.7]} 36. Be6 {[%clk 0:00:16.6]} 36... Bf4 {[%clk 0:00:43.6]} 37. Re2
{[%clk 0:00:14.5]} 37... Qa1+ {[%clk 0:00:41.7]} 38. Re1 {[%clk 0:00:14.5]}
38... Qf6 {[%clk 0:00:41.4]} 39. Qe2 {[%clk 0:00:13.2]} 39... Qc3 {[%clk
0:00:40.3]} 40. Rf1 {[%clk 0:00:13]} 40... b5 {[%clk 0:00:34]} 41. g3 {[%clk
0:00:12.2]} 41... Bh6 {[%clk 0:00:33]} 42. Ng1 {[%clk 0:00:09.8]} 42... Rb8
{[%clk 0:00:25.9]} 43. Qf3 {[%clk 0:00:08.4]} 43... Bg7 {[%clk 0:00:23.8]} 44.
Ne2 {[%clk 0:00:06.5]} 44... Qd2 {[%clk 0:00:23.3]} 45. Qg2 {[%clk 0:00:06]}
45... b4 {[%clk 0:00:23.1]} 46. Nf4 {[%clk 0:00:05.6]} 46... Qd4 {[%clk
0:00:21.8]} 47. Nxg6+ {[%clk 0:00:05.2]} 47... hxg6 {[%clk 0:00:13.8]} 48. Qh3+
{[%clk 0:00:05.6]} 1-0

[Event "*** Titled Tuesday Blitz"]
[Site "Chess.com"]
[Date "2020.05.12"]
[Round "9"]
[White "earling8018"]
[Black "chessuriel"]
[Result "0-1"]
[WhiteElo "2024"]
[BlackElo "2148"]
[TimeControl "180+1"]
[EndTime "11:43:47 PDT"]
[Termination "chessuriel won on time"]

1. d4 {[%clk 0:03:00.9]} 1... Nf6 {[%clk 0:02:59.2]} 2. c4 {[%clk 0:03:00.7]}
2... e6 {[%clk 0:03:00.1]} 3. Nf3 {[%clk 0:02:58.7]} 3... b6 {[%clk 0:02:58.6]}
4. g3 {[%clk 0:02:58.7]} 4... Bb7 {[%clk 0:02:56.4]} 5. Bg2 {[%clk 0:02:59.1]}
5... Be7 {[%clk 0:02:52.9]} 6. O-O {[%clk 0:02:57.7]} 6... Ne4 {[%clk
0:02:52.6]} 7. Qc2 {[%clk 0:02:53.4]} 7... O-O {[%clk 0:02:48.8]} 8. Nc3 {[%clk
0:02:53]} 8... f5 {[%clk 0:02:49.1]} 9. Nd2 {[%clk 0:02:32.5]} 9... d5 {[%clk
0:02:42.3]} 10. cxd5 {[%clk 0:02:02.1]} 10... exd5 {[%clk 0:02:41.9]} 11. Nf3
{[%clk 0:01:57]} 11... Nd7 {[%clk 0:02:35.1]} 12. Bf4 {[%clk 0:01:56.5]} 12...
c5 {[%clk 0:02:27.2]} 13. dxc5 {[%clk 0:01:32.7]} 13... bxc5 {[%clk 0:02:25]}
14. Rad1 {[%clk 0:01:31.7]} 14... Ndf6 {[%clk 0:02:21.4]} 15. Ne5 {[%clk
0:01:24.6]} 15... Qa5 {[%clk 0:02:16.4]} 16. Qa4 {[%clk 0:00:47.4]} 16... Qb6
{[%clk 0:02:15.5]} 17. Qb5 {[%clk 0:00:46.5]} 17... d4 {[%clk 0:02:13.6]} 18.
Qxb6 {[%clk 0:00:42.8]} 18... axb6 {[%clk 0:02:14.5]} 19. Nxe4 {[%clk 0:00:43]}
19... fxe4 {[%clk 0:02:14.1]} 20. Bg5 {[%clk 0:00:39.5]} 20... Rxa2 {[%clk
0:02:12.7]} 21. Bxf6 {[%clk 0:00:37.8]} 21... Rxf6 {[%clk 0:02:10.9]} 22. Nd7
{[%clk 0:00:37.7]} 22... Rd6 {[%clk 0:02:01.8]} 23. Ne5 {[%clk 0:00:37.5]} 23...
Re6 {[%clk 0:01:50.3]} 24. Nc4 {[%clk 0:00:36.8]} 24... Ba6 {[%clk 0:01:50]} 25.
b3 {[%clk 0:00:28.9]} 25... Bd8 {[%clk 0:01:48.7]} 26. Bh3 {[%clk 0:00:27.8]}
26... Re8 {[%clk 0:01:46.3]} 27. Nd6 {[%clk 0:00:27.5]} 27... Re5 {[%clk
0:01:41.5]} 28. Ra1 {[%clk 0:00:26.4]} 28... Rxa1 {[%clk 0:01:32.5]} 29. Rxa1
{[%clk 0:00:26.3]} 29... Bc7 {[%clk 0:01:17.7]} 30. Rxa6 {[%clk 0:00:14.5]}
30... Bxd6 {[%clk 0:01:17.6]} 31. Rxb6 {[%clk 0:00:15.1]} 31... Bf8 {[%clk
0:01:15.9]} 32. Kf1 {[%clk 0:00:10.3]} 32... g6 {[%clk 0:01:12.2]} 33. Ke1
{[%clk 0:00:10]} 33... Be7 {[%clk 0:01:06.1]} 34. Bd7 {[%clk 0:00:07.6]} 34...
Kf7 {[%clk 0:00:59.8]} 35. Bb5 {[%clk 0:00:07.5]} 35... Bd8 {[%clk 0:00:56.4]}
36. Rb7+ {[%clk 0:00:06.7]} 36... Kf6 {[%clk 0:00:44]} 37. Rxh7 {[%clk
0:00:06.2]} 37... Ba5+ {[%clk 0:00:43.9]} 38. Kd1 {[%clk 0:00:04.9]} 38... Rf5
{[%clk 0:00:42.1]} 39. f3 {[%clk 0:00:04.1]} 39... exf3 {[%clk 0:00:41.4]} 40.
exf3 {[%clk 0:00:05]} 40... Rxf3 {[%clk 0:00:40.1]} 41. Bc4 {[%clk 0:00:04.8]}
41... Kg5 {[%clk 0:00:30.7]} 42. Ke2 {[%clk 0:00:03.7]} 42... Rc3 {[%clk
0:00:28]} 43. Be6 {[%clk 0:00:03.4]} 43... Bb4 {[%clk 0:00:24.5]} 44. h4+ {[%clk
0:00:02.4]} 44... Kf6 {[%clk 0:00:23.9]} 45. Bc4 {[%clk 0:00:02.8]} 45... Rxg3
{[%clk 0:00:23.4]} 46. Rf7+ {[%clk 0:00:02.1]} 46... Ke5 {[%clk 0:00:22.3]} 47.
Rg7 {[%clk 0:00:02.2]} 47... Kf5 {[%clk 0:00:21]} 48. h5 {[%clk 0:00:01.7]}
48... Re3+ {[%clk 0:00:18.2]} 0-1

[Event "*** Titled Tuesday Blitz"]
[Site "Chess.com"]
[Date "2020.05.12"]
[Round "9"]
[White "DonPreuss"]
[Black "alexsergeyev"]
[Result "0-1"]
[WhiteElo "2189"]
[BlackElo "2365"]
[TimeControl "180+1"]
[EndTime "11:43:49 PDT"]
[Termination "alexsergeyev won on time"]

1. d4 {[%clk 0:03:00.9]} 1... d5 {[%clk 0:02:58.7]} 2. e4 {[%clk 0:03:00.9]}
2... dxe4 {[%clk 0:02:57.8]} 3. Nc3 {[%clk 0:03:01.3]} 3... e5 {[%clk
0:02:57.7]} 4. Nxe4 {[%clk 0:03:00.8]} 4... Nf6 {[%clk 0:02:47.3]} 5. Nxf6+
{[%clk 0:02:50.9]} 5... Qxf6 {[%clk 0:02:42.7]} 6. dxe5 {[%clk 0:02:50.7]} 6...
Qxe5+ {[%clk 0:02:42.5]} 7. Be2 {[%clk 0:02:51.1]} 7... Bg4 {[%clk 0:02:38.4]}
8. Be3 {[%clk 0:02:46.5]} 8... Bxe2 {[%clk 0:02:32.8]} 9. Nxe2 {[%clk
0:02:44.6]} 9... Nc6 {[%clk 0:02:31.7]} 10. c3 {[%clk 0:02:41.5]} 10... Bc5
{[%clk 0:02:18.9]} 11. Bxc5 {[%clk 0:02:35]} 11... Qxc5 {[%clk 0:02:17.7]} 12.
O-O {[%clk 0:02:35.5]} 12... O-O {[%clk 0:02:16.4]} 13. Qb3 {[%clk 0:02:32.6]}
13... b6 {[%clk 0:02:15.3]} 14. Ng3 {[%clk 0:02:32]} 14... Rfe8 {[%clk
0:02:13.6]} 15. Rfe1 {[%clk 0:02:30.7]} 15... Rad8 {[%clk 0:02:02.9]} 16. Ne4
{[%clk 0:02:27.5]} 16... Qe5 {[%clk 0:01:54.8]} 17. Re3 {[%clk 0:01:54.3]} 17...
Na5 {[%clk 0:01:28.4]} 18. Qc2 {[%clk 0:01:39]} 18... Re6 {[%clk 0:01:24.5]} 19.
Rae1 {[%clk 0:01:35.6]} 19... Nc4 {[%clk 0:01:16.9]} 20. R3e2 {[%clk 0:01:35]}
20... Rde8 {[%clk 0:01:12]} 21. Ng3 {[%clk 0:01:18.9]} 21... Qd6 {[%clk
0:01:09.1]} 22. h3 {[%clk 0:01:13.1]} 22... Rxe2 {[%clk 0:00:54.3]} 23. Rxe2
{[%clk 0:01:14]} 23... Rxe2 {[%clk 0:00:52]} 24. Qxe2 {[%clk 0:01:14.9]} 24...
Qe6 {[%clk 0:00:50.3]} 25. Qf3 {[%clk 0:00:40.7]} 25... c6 {[%clk 0:00:44.1]}
26. b3 {[%clk 0:00:40.2]} 26... Ne5 {[%clk 0:00:41.7]} 27. Qe4 {[%clk
0:00:38.6]} 27... g6 {[%clk 0:00:24]} 28. Ne2 {[%clk 0:00:37.7]} 28... f5 {[%clk
0:00:22.2]} 29. Qa4 {[%clk 0:00:26.1]} 29... a5 {[%clk 0:00:19]} 30. Nf4 {[%clk
0:00:21.1]} 30... Qd6 {[%clk 0:00:18.7]} 31. Qd4 {[%clk 0:00:17.3]} 31... Qxd4
{[%clk 0:00:18.1]} 32. cxd4 {[%clk 0:00:18.2]} 32... Nd7 {[%clk 0:00:18.3]} 33.
Kf1 {[%clk 0:00:18.3]} 33... Kf7 {[%clk 0:00:17.9]} 34. Ke2 {[%clk 0:00:18.5]}
34... Nf6 {[%clk 0:00:18.6]} 35. Nd3 {[%clk 0:00:17.9]} 35... Ke6 {[%clk
0:00:17.1]} 36. a3 {[%clk 0:00:12.7]} 36... Nd5 {[%clk 0:00:16.7]} 37. Kd2
{[%clk 0:00:12.1]} 37... g5 {[%clk 0:00:15.7]} 38. Nb2 {[%clk 0:00:12]} 38... h5
{[%clk 0:00:15.5]} 39. Nc4 {[%clk 0:00:11.8]} 39... h4 {[%clk 0:00:15.4]} 40.
Kd3 {[%clk 0:00:10.7]} 40... g4 {[%clk 0:00:15.4]} 41. hxg4 {[%clk 0:00:10.7]}
41... fxg4 {[%clk 0:00:14.9]} 42. Ke2 {[%clk 0:00:11]} 42... Nf4+ {[%clk
0:00:14]} 43. Kf1 {[%clk 0:00:10.9]} 43... Nd5 {[%clk 0:00:14.4]} 44. Nd2 {[%clk
0:00:06.2]} 44... Kf5 {[%clk 0:00:14.2]} 45. f3 {[%clk 0:00:04.7]} 45... g3
{[%clk 0:00:14.1]} 46. Ke2 {[%clk 0:00:04.2]} 46... Kf4 {[%clk 0:00:14.1]} 47.
Kd3 {[%clk 0:00:01.9]} 47... Ne3 {[%clk 0:00:13.7]} 0-1

[Event "*** Titled Tuesday Blitz"]
[Site "Chess.com"]
[Date "2020.05.12"]
[Round "9"]
[White "ElGasanov"]
[Black "InitiatingASC"]
[Result "1-0"]
[WhiteElo "2742"]
[BlackElo "2368"]
[TimeControl "180+1"]
[EndTime "11:43:53 PDT"]
[Termination "ElGasanov won by checkmate"]

1. d4 {[%clk 0:03:00.9]} 1... d5 {[%clk 0:02:57.4]} 2. Nf3 {[%clk 0:03:01.3]}
2... e6 {[%clk 0:02:56.6]} 3. c4 {[%clk 0:02:57.1]} 3... c5 {[%clk 0:02:55.4]}
4. e3 {[%clk 0:02:57.1]} 4... Nf6 {[%clk 0:02:54.5]} 5. Nc3 {[%clk 0:02:56.6]}
5... Nc6 {[%clk 0:02:54.2]} 6. a3 {[%clk 0:02:57]} 6... a6 {[%clk 0:02:53.3]} 7.
dxc5 {[%clk 0:02:57.4]} 7... Bxc5 {[%clk 0:02:52.9]} 8. b4 {[%clk 0:02:57.7]}
8... Bd6 {[%clk 0:02:52.7]} 9. Ra2 {[%clk 0:02:55.1]} 9... dxc4 {[%clk
0:02:43.9]} 10. Rd2 {[%clk 0:02:52]} 10... Ke7 {[%clk 0:02:38.7]} 11. Bxc4
{[%clk 0:02:50.9]} 11... Qc7 {[%clk 0:02:37.3]} 12. O-O {[%clk 0:02:45.9]} 12...
Ne5 {[%clk 0:02:31.5]} 13. Be2 {[%clk 0:02:15.2]} 13... Nxf3+ {[%clk 0:02:03]}
14. Bxf3 {[%clk 0:02:15.3]} 14... Be5 {[%clk 0:02:03.7]} 15. Na4 {[%clk
0:02:10]} 15... Bxh2+ {[%clk 0:02:02.2]} 16. Kh1 {[%clk 0:02:09.9]} 16... Be5
{[%clk 0:01:58.9]} 17. Nc5 {[%clk 0:02:04.8]} 17... Ra7 {[%clk 0:01:43.4]} 18.
Qb3 {[%clk 0:01:54.2]} 18... b6 {[%clk 0:01:34.6]} 19. Na4 {[%clk 0:01:49.5]}
19... Rd8 {[%clk 0:01:30.3]} 20. Rc2 {[%clk 0:01:48.5]} 20... Qb8 {[%clk
0:01:25.3]} 21. Rc6 {[%clk 0:01:41.1]} 21... Bd7 {[%clk 0:01:17.5]} 22. Rc2
{[%clk 0:01:26.9]} 22... Rc7 {[%clk 0:01:11.7]} 23. Nc3 {[%clk 0:01:12.6]} 23...
Qc8 {[%clk 0:01:02.7]} 24. Bb2 {[%clk 0:01:12.5]} 24... Bb5 {[%clk 0:01:00.1]}
25. Nxb5 {[%clk 0:00:36.1]} 25... Rxc2 {[%clk 0:00:57.7]} 26. Na7 {[%clk
0:00:36.7]} 26... Rxb2 {[%clk 0:00:28.5]} 27. Nxc8+ {[%clk 0:00:36.9]} 27...
Rxc8 {[%clk 0:00:28.3]} 28. Qa4 {[%clk 0:00:37.6]} 28... Rcc2 {[%clk 0:00:19.6]}
29. Kg1 {[%clk 0:00:36.4]} 29... Nd7 {[%clk 0:00:18.2]} 30. Qxa6 {[%clk
0:00:35]} 30... Rd2 {[%clk 0:00:18.4]} 31. Qb7 {[%clk 0:00:29.7]} 31... g6
{[%clk 0:00:17.4]} 32. Bc6 {[%clk 0:00:29]} 32... Ra2 {[%clk 0:00:15.5]} 33. a4
{[%clk 0:00:28.1]} 33... h5 {[%clk 0:00:11]} 34. a5 {[%clk 0:00:24.7]} 34...
bxa5 {[%clk 0:00:10.5]} 35. bxa5 {[%clk 0:00:24.8]} 35... Rxa5 {[%clk
0:00:09.8]} 36. Bxd7 {[%clk 0:00:23.8]} 36... Rxd7 {[%clk 0:00:07.3]} 37. Qb4+
{[%clk 0:00:24.3]} 37... Bd6 {[%clk 0:00:08.1]} 38. Qxa5 {[%clk 0:00:24.6]}
38... Kf6 {[%clk 0:00:08.1]} 39. Qb5 {[%clk 0:00:22.8]} 39... Re7 {[%clk
0:00:07.8]} 40. Rd1 {[%clk 0:00:22.3]} 40... Be5 {[%clk 0:00:08.1]} 41. f4
{[%clk 0:00:21.7]} 41... Bc7 {[%clk 0:00:07.2]} 42. Rd7 {[%clk 0:00:21.3]} 42...
Rxd7 {[%clk 0:00:06.9]} 43. Qxd7 {[%clk 0:00:21.5]} 43... Bb6 {[%clk 0:00:07.5]}
44. Kf2 {[%clk 0:00:20.5]} 44... Kg7 {[%clk 0:00:07.5]} 45. Kf3 {[%clk
0:00:20.4]} 45... Bc5 {[%clk 0:00:07.7]} 46. e4 {[%clk 0:00:19.1]} 46... Bf8
{[%clk 0:00:07.6]} 47. g4 {[%clk 0:00:19.1]} 47... hxg4+ {[%clk 0:00:07.4]} 48.
Kxg4 {[%clk 0:00:19.6]} 48... Kg8 {[%clk 0:00:08.2]} 49. f5 {[%clk 0:00:18.5]}
49... gxf5+ {[%clk 0:00:08]} 50. exf5 {[%clk 0:00:18.9]} 50... exf5+ {[%clk
0:00:08.8]} 51. Kxf5 {[%clk 0:00:19.3]} 51... Kg7 {[%clk 0:00:08.2]} 52. Qd4+
{[%clk 0:00:18.8]} 52... Kg8 {[%clk 0:00:08]} 53. Qe5 {[%clk 0:00:19.2]} 53...
Bg7 {[%clk 0:00:08.1]} 54. Qe8+ {[%clk 0:00:18.9]} 54... Bf8 {[%clk 0:00:08.8]}
55. Kf6 {[%clk 0:00:18.6]} 55... Kh7 {[%clk 0:00:09.1]} 56. Qxf7+ {[%clk
0:00:17.3]} 56... Kh6 {[%clk 0:00:09.1]} 57. Qg6# {[%clk 0:00:17]} 1-0